bitfinex/quotes_ETHUSD_20251217
["timestamp","ask_amount","ask_price","bid_price","bid_amount"]
[1765990580435,0.001,2856.4,2855.1,7.6717]
[1765990580436,0.001,2856.4,2855.5,0.35020436]
[1765990580640,0.001,2856.4,2855.2,3.50232853]
[1765990580817,0.46438023,2855.9,2854.5,5.4636]
[1765990581120,0.57,2855.9,2855.0,0.0561]
[1765990581328,2.1156,2855.8,2855.0,0.0561]
[1765990581536,0.001,2855.8,2855.0,0.0561]
[1765990582053,0.46438023,2855.5,2855.0,0.0551]
[1765990582246,0.46438023,2855.4,2855.0,0.0551]
[1765990582454,0.405504,2855.2,2855.0,0.0551]
[1765990582742,0.57,2855.2,2855.0,0.0551]
[1765990583333,11.201933,2855.1,2855.0,0.0551]
[1765990583521,0.57,2855.2,2855.0,0.0551]
[1765990583944,4.835601,2855.1,2855.0,0.0551]
[1765990584244,6.24524533,2855.1,2855.0,0.0551]
[1765990584635,17.16814333,2855.1,2855.0,0.0551]
[1765990584824,18.87394291,2855.1,2855.0,0.0551]
[1765990585024,4.13055333,2855.1,2855.0,0.0551]
[1765990585224,4.13055333,2855.1,2855.0,0.0571]
[1765990585750,15.74363133,2855.1,2855.0,0.0571]
[1765990586047,20.9519352,2855.1,2855.0,0.0571]
[1765990586627,6.6187482,2855.1,2855.0,0.0571]
[1765990586957,16.76263933,2855.1,2855.0,0.0571]
[1765990587145,14.09092533,2855.1,2855.0,0.0571]
[1765990587457,1.00494033,2855.1,2855.0,0.0571]
[1765990587659,0.46438023,2855.1,2855.0,0.0571]
[1765990588043,15.757699,2855.2,2855.0,0.0571]
[1765990588248,0.57,2855.2,2855.0,0.0571]
[1765990588453,16.163203,2855.1,2855.0,0.0571]
[1765990588645,16.62758323,2855.1,2855.0,0.0571]
[1765990588825,16.62758323,2855.1,2855.0,1e-08]
[1765990588826,21.20637243,2855.1,2855.0,1e-08]
[1765990589023,20.54237343,2855.1,2855.0,1e-08]
[1765990589339,19.92321343,2855.1,2855.0,1e-08]
[1765990589527,21.71991814,2855.1,2855.0,1e-08]
[1765990589724,20.07138372,2855.1,2855.0,1e-08]
[1765990589927,16.87467672,2855.1,2855.0,1e-08]
[1765990590654,8.87272585,2855.1,2855.0,1e-08]
[1765990590955,3.74287385,2855.1,2855.0,1e-08]
[1765990591151,0.89452084,2855.1,2855.0,1e-08]
[1765990591559,5.18985684,2855.1,2855.0,1e-08]
[1765990591962,8.69236113,2855.1,2855.0,1e-08]
[1765990592826,5.18985684,2855.1,2855.0,1e-08]
[1765990593026,6.89565642,2855.1,2855.0,1e-08]
[1765990593254,19.00513219,2855.1,2855.0,1e-08]
[1765990593458,0.405504,2854.9,2853.8,0.002]
[1765990593660,0.86988423,2854.5,2853.8,0.002]
[1765990593838,0.57,2854.4,2853.8,0.002]
[1765990594041,0.26793555,2854.3,2853.8,0.002]
[1765990594244,0.405504,2854.3,2853.8,0.002]
[1765990596162,0.57,2854.7,2853.8,0.002]
[1765990596468,0.57,2854.7,2853.8,7.6737]
[1765990596962,5.689587,2854.6,2853.8,0.002]
[1765990597165,0.6259587,2854.5,2853.8,0.002]
[1765990597369,0.57,2854.7,2853.8,0.002]
[1765990597370,4.956979,2854.6,2853.8,0.002]
[1765990597578,0.46438023,2854.5,2853.8,0.002]
[1765990598657,4.53737545,2854.7,2853.8,0.002]
[1765990598853,0.46438023,2854.5,2853.8,0.002]
[1765990599264,0.46438023,2854.3,2853.8,0.002]
[1765990599458,2.19220792,2854.2,2853.8,0.002]
[1765990599657,0.57,2854.2,2853.8,0.002]
[1765990600062,3.52763183,2854.7,2853.8,0.002]
[1765990600063,1.73459945,2855.3,2853.9,7.6717]
[1765990600367,0.57,2855.2,2853.8,0.002]
[1765990600572,0.46438023,2855.0,2853.9,7.6717]
[1765990600902,1.72679675,2855.4,2854.2,5.7896]
[1765990600903,0.001,2855.4,2854.2,5.7896]
[1765990601071,0.001,2855.4,2855.0,2.2096]
[1765990601242,0.001,2855.4,2854.3,0.6195104]
[1765990601243,0.001,2855.4,2855.1,7.9992]
[1765990601448,0.001,2855.6,2854.9,5.7896]
[1765990601668,0.001,2855.6,2855.2,7.00476322]
[1765990601972,0.57,2856.1,2855.3,8.69967632]
[1765990602683,0.57,2856.1,2855.3,0.70047632]
[1765990602838,0.57,2856.1,2855.1,3.50248625]
[1765990603039,0.57,2856.1,2855.1,7.00499054]
[1765990603264,0.6730756,2856.6,2855.1,7.00499054]
[1765990603465,7.540848,2856.4,2855.1,15.00419054]
[1765990603672,7.540848,2856.4,2855.3,3.50225895]
[1765990603873,0.46438023,2856.3,2855.3,3.50225895]
[1765990604073,9.841864,2856.4,2855.3,7.0045179]
[1765990604393,16.163203,2856.0,2854.6,7.9992]
[1765990604664,16.163203,2856.0,2854.8,3.50285846]
[1765990604665,3.537035,2855.8,2854.8,3.50285846]
[1765990604871,0.57,2855.9,2854.9,3.50267218]
[1765990605067,13.168447,2855.8,2854.9,0.70056536]
[1765990605384,13.168447,2855.8,2854.9,4.20329003]
[1765990606087,0.57,2855.9,2854.9,12.20249003]
[1765990606244,0.46438023,2855.7,2854.9,4.20329003]
[1765990606440,0.57,2855.9,2854.8,3.50286781]
[1765990606678,0.57,2855.9,2854.9,12.7950532]
[1765990606887,0.86988423,2856.3,2854.9,12.7950532]
[1765990606888,2.104279,2856.3,2855.1,2.2096]
[1765990607047,0.02463661,2856.4,2854.9,10.50820285]
[1765990607048,0.57,2856.2,2854.9,10.50820285]
[1765990607252,0.57,2856.2,2854.9,11.07820285]
[1765990607475,0.57,2856.2,2855.1,7.9992]
[1765990607881,0.001,2855.8,2855.3,5.7896]
[1765990608081,0.57,2856.5,2855.3,5.7896]
[1765990608281,0.5692,2856.5,2855.3,7.9992]
[1765990608484,0.5692,2856.5,2854.6,11.50225069]
[1765990608485,0.02463661,2856.0,2854.6,11.50225069]
[1765990608652,0.46438023,2855.7,2854.7,3.50291916]
[1765990608852,0.57,2855.9,2854.9,3.50265533]
[1765990609153,0.57,2855.9,2855.1,3.50249298]
[1765990609353,0.57,2855.8,2855.0,11.50178124]
[1765990609763,0.57,2855.8,2855.0,7.9992]
[1765990609962,0.57,2855.8,2855.0,11.50177265]
[1765990610487,0.02463661,2856.2,2855.0,7.00519962]
[1765990610685,0.59463661,2856.2,2855.0,7.00519962]
[1765990610870,0.59463661,2856.2,2855.2,2.2096]
[1765990611051,0.59463661,2856.2,2855.1,6.84038777]
[1765990611256,0.59463661,2856.2,2855.1,1.05078777]
[1765990611457,0.59463661,2856.2,2855.1,7.9992]
[1765990612158,0.59463661,2856.2,2855.2,3.50238161]
[1765990612559,0.59463661,2856.2,2855.2,7.00476322]
[1765990612784,0.59463661,2856.2,2855.2,15.00396322]
[1765990613399,0.59463661,2856.2,2855.3,7.9992]
[1765990613763,0.59463661,2856.2,2855.3,9.14935816]
[1765990614690,0.59563661,2856.2,2855.3,12.65152978]
[1765990614987,0.86988423,2855.7,2854.4,3.50324603]
[1765990615200,0.57,2855.6,2854.5,3.50321091]
[1765990615354,0.57,2855.6,2854.6,11.50222758]
[1765990615559,0.57,2855.6,2854.5,3.50314218]
[1765990615915,0.57,2855.5,2854.4,0.57]
[1765990616252,0.02463661,2855.4,2854.4,0.57]
[1765990616486,0.46438023,2855.2,2854.3,3.5034236]
[1765990616709,0.46438023,2855.2,2854.2,2.2096]
[1765990616859,1.58165392,2855.1,2854.2,7.9992]
[1765990617058,0.46438023,2855.2,2854.2,7.9992]
[1765990617358,0.46438023,2855.1,2854.0,4.07378171]
[1765990617558,0.57,2855.0,2854.0,4.07378171]
[1765990617777,0.57,2855.0,2853.8,0.002]
[1765990617963,0.57,2855.0,2854.0,3.50374615]
[1765990618687,0.57,2855.0,2853.8,8.0012]
[1765990618992,0.57,2855.0,2853.9,3.50397701]
[1765990619193,0.57,2855.0,2853.9,15.00715402]
[1765990619510,0.57,2854.9,2854.2,7.9992]
[1765990619876,0.02463661,2855.2,2853.9,10.51193103]
[1765990620171,0.02463661,2855.4,2854.3,7.9992]
[1765990620172,0.46438023,2855.4,2854.3,7.9992]
[1765990620372,0.57,2855.3,2854.3,8.71978503]
[1765990620689,0.57,2855.4,2854.3,0.72058503]
[1765990620884,2.56499623,2855.3,2854.4,3.50336322]
[1765990621184,0.02463661,2855.9,2854.4,7.00672644]
[1765990621384,0.405504,2856.0,2854.4,7.00672644]
[1765990621385,0.57,2856.0,2855.0,5.7896]
[1765990621769,0.57,2856.0,2855.1,7.9992]
[1765990622490,0.57,2856.0,2855.2,5.7896]
[1765990622690,0.02563661,2856.2,2855.2,8.57816]
[1765990622859,0.57,2856.0,2855.2,12.08044696]
[1765990623059,0.001,2856.2,2855.3,5.7896]
[1765990623260,0.571,2856.2,2855.2,2.78856]
[1765990623504,0.571,2856.2,2855.2,0.57896]
[1765990623682,0.02463661,2856.1,2855.0,3.50253449]
[1765990623997,14.836437,2855.8,2854.5,8.5692]
[1765990624166,14.836437,2855.8,2854.1,8.0012]
[1765990624167,0.46438023,2855.4,2854.1,8.0012]
[1765990624492,2.19220792,2855.3,2854.4,3.50334224]
[1765990624791,0.57,2855.3,2854.4,3.50334224]
[1765990624984,0.57,2855.3,2854.2,4.30368742]
[1765990624985,0.57,2855.3,2854.3,3.50348596]
[1765990625582,0.57,2855.3,2854.2,7.80727595]
[1765990625913,0.02463661,2856.4,2854.5,5.7896]
[1765990626062,0.57,2856.4,2855.1,2.2096]
[1765990626269,0.57,2856.4,2855.4,7.9992]
[1765990626468,0.571,2856.5,2855.6,7.9992]
[1765990626895,0.571,2856.5,2855.6,11.50104819]
[1765990627208,0.571,2856.5,2855.2,0.79096]
[1765990627209,0.02463661,2856.4,2855.2,0.79096]
[1765990627699,0.02463661,2856.4,2855.4,3.50207127]
[1765990627906,0.02463661,2856.4,2855.5,3.50199952]
[1765990628409,0.02463661,2856.4,2855.5,3.50194768]
[1765990628612,0.02463661,2856.4,2855.5,11.50114768]
[1765990629210,0.02463661,2856.4,2855.6,3.50183712]
[1765990629416,0.02463661,2856.4,2855.2,0.79096]
[1765990629703,0.46438023,2856.0,2855.3,3.50219404]
[1765990629880,0.02463661,2856.4,2855.3,3.50219404]
[1765990630277,0.46438023,2856.0,2855.3,3.50219404]
[1765990630478,0.02463661,2856.4,2855.2,0.79096]
[1765990630680,0.02463661,2856.4,2855.4,3.50207126]
[1765990631098,0.02463661,2856.4,2855.4,7.0042726]
[1765990631310,6.39,2856.3,2855.6,5.0284]
[1765990631489,0.46538023,2856.2,2855.8,5.0284]
[1765990631688,0.46538023,2856.2,2855.7,2.2279]
[1765990631908,0.46538023,2856.2,2855.5,5.0284]
[1765990632226,0.46538023,2856.2,2855.4,7.5732726]
[1765990632383,1.15258191,2856.2,2855.4,0.569]
[1765990632588,1.15258191,2856.2,2855.3,3.50225895]
[1765990632809,0.46458023,2856.2,2855.4,7.2563]
[1765990633006,0.46458023,2856.2,2855.4,5.0284]
[1765990633212,0.0002,2856.2,2855.7,14.25983678]
[1765990633438,0.0002,2856.2,2855.7,7.00353678]
[1765990633586,0.001,2856.6,2856.3,5.0284]
[1765990633923,0.001,2856.8,2856.4,5.0284]
[1765990634324,0.001,2857.0,2856.5,5.06340787]
[1765990634624,0.001,2857.0,2856.4,0.72563]
[1765990634832,0.001,2857.0,2856.3,0.569]
[1765990635334,0.001,2857.0,2856.3,4.0700069]
[1765990635828,0.001,2857.0,2856.4,5.0284]
[1765990637108,0.001,2857.0,2856.6,5.0284]
[1765990637310,2.3532,2857.0,2856.3,0.569]
[1765990637505,2.3532,2857.0,2856.2,3.50109331]
[1765990637506,2.58862,2857.0,2856.2,3.50109331]
[1765990637843,2.3532,2857.0,2856.2,9.09849331]
[1765990638149,0.001,2857.0,2856.4,5.0284]
[1765990638306,0.001,2857.0,2856.2,4.07009714]
[1765990638498,0.001,2857.0,2856.3,3.50096768]
[1765990638931,0.001,2857.0,2856.4,5.0284]
[1765990639716,0.001,2857.0,2855.5,5.0284]
[1765990640031,2.84121684,2856.8,2855.7,5.0284]
[1765990640232,2.37683661,2856.8,2855.8,5.0284]
[1765990640536,2.37683661,2856.8,2855.9,3.50144728]
[1765990640850,0.46438023,2856.9,2855.6,0.569]
[1765990640851,0.569,2856.9,2856.6,5.0284]
[1765990641004,0.001,2857.4,2857.0,5.0284]
[1765990641206,0.001,2857.4,2856.8,0.569]
[1765990641400,0.001,2857.4,2856.9,3.50029752]
[1765990641639,0.001,2857.4,2856.9,5.0284]
[1765990642412,0.001,2857.7,2857.1,5.0284]
[1765990642612,2.3532,2857.7,2856.9,0.63131503]
[1765990643565,0.001,2857.7,2857.0,5.0284]
[1765990643712,0.001,2857.7,2857.3,2.2279]
[1765990643917,0.001,2857.7,2856.9,4.131606]
[1765990643918,2.3522,2857.6,2856.9,4.131606]
[1765990644643,0.001,2857.7,2857.0,0.4131606]
[1765990644845,0.001,2857.9,2857.5,2.2279]
[1765990645024,0.001,2857.9,2857.6,5.0284]
[1765990645425,0.001,2857.9,2857.7,5.0284]
[1765990645623,0.001,2858.3,2858.0,7.2563]
[1765990645967,0.001,2858.3,2858.0,5.0284]
[1765990646441,2.81658023,2858.9,2858.0,5.0284]
[1765990646608,2.3522,2858.9,2858.0,5.0284]
[1765990647414,2.3522,2858.9,2858.1,3.49882789]
[1765990647614,2.74154802,2858.9,2858.1,3.49882789]
[1765990647814,2.74154802,2858.9,2858.0,5.0284]
[1765990648410,2.3522,2858.9,2858.0,12.02625883]
[1765990648614,4.396361,2859.2,2858.6,2.2279]
[1765990648843,4.396361,2859.2,2858.9,5.0284]
[1765990649123,0.001,2859.3,2858.9,5.0284]
[1765990649331,0.001,2859.4,2858.9,5.0284]
[1765990649332,0.001,2859.4,2859.1,5.0284]
[1765990649533,0.57,2859.9,2858.9,0.569]
[1765990649534,0.001,2859.9,2859.6,5.0284]
[1765990649748,2.3522,2860.8,2859.9,7.2563]
[1765990649953,2.9212,2861.1,2860.0,7.29126503]
[1765990650119,0.001,2860.6,2860.0,7.2563]
[1765990650320,2.9212,2860.5,2859.3,5.0284]
[1765990650623,2.3522,2860.2,2859.3,7.2563]
[1765990650844,2.3522,2860.2,2859.4,5.0284]
[1765990651353,0.02463661,2860.1,2859.0,5.0284]
[1765990651539,2.3522,2859.7,2858.8,5.5974]
[1765990651722,2.3522,2859.7,2858.9,5.0284]
[1765990651923,2.58988366,2859.7,2858.9,5.0284]
[1765990652552,2.81658023,2859.3,2858.2,2.2279]
[1765990652756,2.3522,2859.0,2858.0,0.569]
[1765990652921,2.3522,2858.9,2857.9,0.569]
[1765990653248,2.3522,2858.3,2857.2,5.0284]
[1765990653484,2.81658023,2858.1,2857.0,2.2279]
[1765990653652,2.3522,2857.8,2856.6,2.2279]
[1765990653852,2.3522,2857.8,2856.8,0.569]
[1765990654163,0.569,2857.9,2857.1,5.0284]
[1765990654330,2.9212,2857.9,2857.1,5.0284]
[1765990654651,2.3522,2857.9,2857.1,5.0284]
[1765990656052,0.77644825,2858.2,2857.1,7.2563]
[1765990656256,0.77564825,2858.2,2857.2,5.5964]
[1765990656630,0.001,2858.1,2857.2,5.5964]
[1765990656953,2.81758023,2858.1,2857.2,5.5964]
[1765990657157,2.37783661,2858.1,2856.9,3.50224113]
[1765990657362,2.37683661,2857.9,2857.0,0.568]
[1765990657572,0.46438023,2857.6,2856.9,0.002]
[1765990657757,0.59263661,2857.9,2856.9,5.0304]
[1765990658062,0.568,2857.9,2857.1,5.0284]
[1765990658388,0.001,2858.1,2857.3,5.0284]
[1765990658835,0.001,2858.1,2857.3,5.5964]
[1765990659232,0.001,2858.1,2857.4,7.2563]
[1765990659660,0.001,2858.1,2857.5,5.0284]
[1765990660777,0.0645,2857.9,2856.9,0.002]
[1765990660931,0.001,2858.1,2856.9,0.002]
[1765990660932,0.46438023,2857.7,2856.9,0.002]
[1765990661263,0.568,2857.8,2857.1,4.8814]
[1765990661451,0.46538023,2858.1,2857.1,2.2755]
[1765990661635,2.80098023,2857.8,2857.1,0.568]
[1765990661836,2.3366,2857.8,2857.1,0.568]
[1765990662034,0.46438023,2857.7,2857.1,0.568]
[1765990662365,2.3366,2857.7,2856.9,0.002]
[1765990662537,2.80098023,2857.7,2856.9,0.002]
[1765990662940,0.46438023,2857.7,2856.9,4.8834]
[1765990663162,0.46438023,2857.7,2856.9,8.38369607]
[1765990663488,0.46438023,2857.7,2857.0,8.38156461]
[1765990663671,2.3376,2858.1,2857.4,4.8814]
[1765990663963,0.001,2858.1,2857.5,0.03499562]
[1765990664266,0.001,2858.1,2857.3,3.49974481]
[1765990664267,0.001,2858.2,2857.7,2.2755]
[1765990664478,0.001,2858.2,2857.9,4.8814]
[1765990664962,0.001,2858.2,2857.8,2.2755]
[1765990665155,0.001,2858.2,2857.8,7.44125]
[1765990665348,0.001,2858.2,2857.8,0.28435]
[1765990665551,0.001,2858.2,2857.6,0.568]
[1765990665751,0.001,2858.2,2857.6,4.06736532]
[1765990666048,0.001,2858.2,2857.4,10.65650707]
[1765990666264,0.001,2858.2,2857.5,0.568]
[1765990666462,0.001,2858.2,2857.6,3.49943582]
[1765990666763,0.001,2858.2,2857.8,4.8814]
[1765990666971,0.001,2858.2,2857.5,0.568]
[1765990667284,0.001,2858.2,2857.6,4.8814]
[1765990667485,0.001,2858.2,2857.6,8.38083271]
[1765990668853,0.001,2858.2,2857.8,4.8814]
[1765990669460,0.001,2858.2,2857.9,4.8814]
[1765990669658,0.568,2858.7,2857.9,4.8814]
[1765990670383,0.568,2858.7,2857.7,0.568]
[1765990670568,0.001,2858.2,2857.7,0.568]
[1765990670771,0.001,2858.2,2857.7,5.4494]
[1765990671153,0.001,2858.2,2857.7,7.7249]
[1765990671378,0.001,2858.2,2857.7,0.568]
[1765990671563,14.86435005,2859.1,2857.7,0.568]
[1765990671564,4.53002139,2859.1,2858.0,4.8814]
[1765990671774,2.9046,2859.1,2858.1,8.94818706]
[1765990672084,2.3366,2859.2,2858.3,4.8814]
[1765990672386,2.92009676,2859.1,2858.0,2.2755]
[1765990672599,2.3366,2859.1,2858.0,4.8814]
[1765990672895,17.7613595,2859.3,2857.9,0.568]
[1765990672896,2.3366,2858.8,2857.9,0.568]
[1765990673183,2.3366,2858.8,2858.0,0.568]
[1765990673388,2.3366,2858.7,2857.8,4.8814]
[1765990673562,2.3366,2858.7,2857.8,8.38057015]
[1765990673759,2.3366,2859.0,2857.1,3.4999635]
[1765990673959,2.80098023,2858.8,2857.5,8.38088999]
[1765990674159,2.3366,2858.6,2857.5,8.38088999]
[1765990674501,2.3366,2858.6,2857.6,4.06739824]
[1765990674797,2.3366,2858.6,2857.6,5.4494]
[1765990675083,2.3366,2858.6,2857.6,0.568]
[1765990675405,2.80098023,2858.4,2857.6,5.4494]
[1765990675760,2.80098023,2858.4,2857.4,5.77514557]
[1765990675761,2.80098023,2858.4,2857.4,2.2755]
[1765990675961,2.80098023,2858.4,2857.5,0.568]
[1765990676263,2.80098023,2858.4,2857.5,4.06755215]
[1765990676675,2.80098023,2858.4,2857.5,4.06750319]
[1765990676874,0.30914402,2858.3,2857.5,3.49950319]
[1765990677203,0.30914402,2858.3,2856.6,0.568]
[1765990677204,2.80098023,2857.9,2856.6,0.568]
[1765990677410,2.3366,2857.7,2856.6,0.568]
[1765990677690,2.3366,2857.7,2856.6,5.4494]
[1765990677861,2.3366,2857.6,2856.6,4.8814]
[1765990678062,2.3366,2857.6,2856.7,0.568]
[1765990678259,1.07923731,2857.9,2856.7,0.568]
[1765990678502,3.36998023,2858.4,2857.2,2.2755]
[1765990678661,2.3366,2858.3,2857.5,4.8814]
[1765990679291,2.656206,2858.3,2857.2,0.568]
[1765990679488,2.656206,2858.3,2857.2,5.4494]
[1765990679489,2.3366,2858.2,2857.2,5.4494]
[1765990679802,2.3366,2858.2,2857.0,2.2755]
[1765990680004,2.80098023,2857.8,2856.9,0.002]
[1765990680172,2.3358,2857.8,2856.9,0.002]
[1765990680504,0.46438023,2858.1,2857.3,4.8814]
[1765990680680,0.568,2858.2,2857.3,7.7249]
[1765990681072,0.568,2858.2,2857.4,4.8814]
[1765990681404,0.001,2858.4,2857.6,4.8814]
[1765990681579,0.001,2858.4,2858.1,2.2755]
[1765990681779,0.568,2859.0,2858.1,2.2755]
[1765990681985,0.568,2859.0,2858.2,4.8814]
[1765990682186,0.568,2859.0,2858.3,4.8814]
[1765990683105,2.9046,2859.0,2857.6,4.8814]
[1765990683308,0.46438023,2858.8,2857.8,0.568]
[1765990683486,0.568,2859.0,2858.0,2.2755]
[1765990683686,2.80098023,2859.2,2857.8,4.06718272]
[1765990683687,0.001,2859.3,2858.4,4.8814]
[1765990683884,0.001,2859.3,2858.5,0.568]
[1765990684083,2.3376,2859.3,2858.5,0.568]
[1765990684281,0.46438023,2859.2,2858.5,0.568]
[1765990684703,0.23486,2859.3,2858.6,4.8814]
[1765990684909,0.001,2859.3,2858.9,7.1569]
[1765990685206,0.001,2859.6,2858.7,0.568]
[1765990685502,0.001,2860.3,2859.4,2.2755]
[1765990685818,0.29176,2860.3,2859.4,7.7249]
[1765990686023,0.29176,2860.3,2858.5,14.39885624]
[1765990686024,2.3366,2860.1,2858.9,4.8814]
[1765990686309,0.46438023,2860.2,2859.1,4.8814]
[1765990686481,2.3366,2860.2,2859.0,5.4494]
[1765990686678,2.3366,2860.2,2859.1,4.8814]
[1765990686909,2.3366,2860.2,2859.2,4.8814]
[1765990687087,0.28019802,2860.1,2859.0,0.568]
[1765990687301,0.28019802,2860.1,2859.4,4.8814]
[1765990687606,0.001,2860.3,2859.6,2.2755]
[1765990687777,0.001,2860.3,2859.7,4.8814]
[1765990688280,2.3376,2860.3,2859.5,0.568]
[1765990688810,0.001,2860.3,2859.9,2.3217]
[1765990688979,0.001,2860.4,2859.6,3.49699101]
[1765990689182,0.001,2860.4,2859.9,4.3709]
[1765990689577,0.001,2860.4,2859.7,2.3217]
[1765990690178,0.001,2860.4,2859.5,4.3709]
[1765990690383,2.3297,2860.3,2859.5,4.9389]
[1765990690694,0.001,2860.4,2859.5,7.4276]
[1765990690899,2.1554,2860.4,2859.5,0.568]
[1765990691109,0.31887802,2860.3,2859.5,5.1851]
[1765990691309,2.1554,2860.4,2859.8,4.6171]
[1765990691310,0.001,2860.4,2859.8,4.6171]
[1765990691620,0.001,2861.4,2860.2,4.6171]
[1765990691785,0.001,2861.4,2860.5,4.6171]
[1765990691993,0.001,2861.4,2860.7,4.6171]
[1765990692316,0.001,2861.4,2860.7,5.87106]
[1765990692906,0.001,2861.4,2860.7,5.1851]
[1765990693436,2.1554,2861.4,2860.3,4.6171]
[1765990693732,2.1554,2861.4,2860.5,0.568]
[1765990693889,2.1554,2861.4,2860.5,5.1851]
[1765990694414,0.001,2861.4,2860.6,4.6171]
[1765990694613,18.37293567,2861.2,2858.6,3.49818767]
[1765990694850,2.61878023,2860.8,2859.5,4.6171]
[1765990695008,2.61878023,2860.8,2859.6,0.567]
[1765990695210,2.1544,2860.8,2859.6,0.567]
[1765990695414,2.1544,2860.8,2859.6,4.6171]
[1765990695602,2.61878023,2860.6,2859.6,4.6171]
[1765990695929,2.24423013,2860.6,2859.6,5.1179226]
[1765990696107,2.1544,2860.5,2859.6,4.6171]
[1765990696310,2.1544,2860.5,2858.7,3.49800099]
[1765990696492,2.1544,2860.5,2859.0,4.6171]
[1765990696698,2.1544,2860.3,2859.1,7.4266]
[1765990697006,2.1544,2860.3,2859.2,2.2425]
[1765990697327,2.41627802,2860.3,2859.3,5.1841]
[1765990697500,0.46438023,2860.5,2859.5,4.6171]
[1765990697501,14.51496123,2860.5,2859.5,4.6171]
[1765990697690,2.7214,2860.9,2859.8,4.6171]
[1765990697890,2.1554,2861.4,2860.2,4.6171]
[1765990698118,0.568,2861.4,2860.3,6.8596]
[1765990698322,0.568,2861.4,2860.4,2.8095]
[1765990698659,0.001,2861.4,2860.9,4.6171]
[1765990698981,2.1544,2862.5,2861.3,2.2425]
[1765990699266,2.1544,2862.5,2861.5,4.6171]
[1765990700168,2.1544,2862.5,2861.6,0.567]
[1765990700461,2.1544,2862.9,2861.8,4.6171]
[1765990701044,0.567,2863.0,2861.8,4.6171]
[1765990701667,2.1544,2863.3,2861.8,4.6171]
[1765990702134,2.1544,2863.3,2861.9,4.6171]
[1765990702463,2.1544,2863.3,2862.1,4.6171]
[1765990702659,2.1544,2863.3,2862.2,2.2425]
[1765990702859,0.567,2863.4,2862.4,6.8596]
[1765990703033,1.03138023,2863.4,2862.5,4.6171]
[1765990704345,1.03058023,2863.4,2862.5,4.6171]
[1765990704555,2.24660622,2864.5,2862.5,2.2425]
[1765990704765,12.430936,2863.9,2862.7,6.8596]
[1765990705065,2.1544,2864.3,2863.0,2.2425]
[1765990705268,0.97396461,2864.4,2863.5,4.6171]
[1765990705269,0.22466062,2864.4,2863.5,4.6171]
[1765990705559,3.5145769,2865.4,2862.8,0.972504]
[1765990705560,2.1544,2865.0,2863.9,4.6171]
[1765990705760,2.1544,2865.0,2862.6,9.50971875]
[1765990705761,2.1544,2865.0,2864.0,5.1841]
[1765990705965,2.1544,2865.0,2864.2,4.6171]
[1765990705966,2.11272,2865.0,2864.2,4.6171]
[1765990706162,2.1544,2865.3,2864.2,4.6171]
[1765990706335,2.1544,2865.3,2864.3,4.6171]
[1765990706534,2.1544,2865.1,2862.5,0.28095]
[1765990706738,2.1544,2864.8,2863.2,4.6171]
[1765990706934,2.1544,2864.8,2863.3,0.567]
[1765990707233,1.79700387,2864.5,2863.4,0.567]
[1765990707442,2.61878023,2864.1,2863.3,0.567]
[1765990707648,2.1544,2864.1,2863.3,0.567]
[1765990708072,2.1544,2864.6,2863.4,0.03492351]
[1765990708349,0.46438023,2864.4,2863.3,5.1841]
[1765990708674,0.6109799,2864.3,2863.4,2.2425]
[1765990708874,0.567,2864.7,2863.7,4.6171]
[1765990709171,0.567,2864.7,2863.7,5.1841]
[1765990709172,0.46438023,2864.6,2863.7,5.1841]
[1765990709387,0.001,2865.0,2863.8,2.2425]
[1765990709548,0.001,2865.0,2864.0,6.8596]
[1765990709744,0.21554,2864.9,2864.1,2.8095]
[1765990709949,0.001,2865.0,2864.2,2.2425]
[1765990710149,0.001,2865.0,2864.4,2.2425]
[1765990710376,0.001,2865.0,2864.7,4.6171]
[1765990710893,0.001,2865.0,2863.6,3.92223727]
[1765990710894,16.22207923,2864.9,2863.2,4.6171]
[1765990711053,2.52684177,2864.8,2863.9,4.6171]
[1765990711251,0.001,2865.0,2864.1,2.2425]
[1765990711447,0.001,2865.0,2864.3,4.6171]
[1765990711668,0.001,2865.0,2863.4,0.405504]
[1765990711884,2.1544,2864.7,2863.3,5.07881]
[1765990712054,2.1544,2864.5,2863.4,4.6171]
[1765990712260,2.61878023,2864.5,2863.5,0.567]
[1765990712566,4.38697858,2864.4,2863.4,4.6171]
[1765990712768,2.1544,2864.0,2863.1,0.567]
[1765990712971,0.567,2864.3,2863.2,6.89452595]
[1765990712972,0.26187802,2863.9,2863.2,6.89452595]
[1765990713183,0.567,2864.3,2863.4,2.2425]
[1765990713486,0.567,2864.3,2862.1,0.48901684]
[1765990713487,11.109587,2864.5,2863.6,4.6171]
[1765990713781,0.46438023,2864.5,2863.4,4.6171]
[1765990713982,2.1544,2864.4,2863.4,4.6171]
[1765990714152,2.1544,2864.1,2862.5,2.2425]
[1765990714347,17.912099,2863.9,2861.2,9.04533852]
[1765990714553,2.1544,2863.5,2862.3,4.6171]
[1765990714779,2.1544,2863.5,2862.1,0.567]
[1765990714780,0.567,2863.6,2862.7,4.6171]
[1765990714979,2.61878023,2863.9,2862.9,4.6171]
[1765990715179,3.49073846,2864.8,2862.9,4.6171]
[1765990715180,3.48960277,2865.7,2863.7,2.2425]
[1765990715356,0.91248946,2866.7,2864.2,4.6171]
[1765990715357,2.3447428,2865.5,2864.2,4.6171]
[1765990715548,4.52024092,2865.5,2864.3,5.1831]
[1765990715752,2.1544,2865.4,2864.3,2.8085]